Cogmind - Beta 13 @@@ ROGUE MODE // 2024.04.06 @ 17:42:22 Player: Papweer Result: Destroyed by TI-RKY(R) with Subdweller Machine Gun Performance ------------- Evolutions (0) 0 Regions Visited (3) 600 Robots Destroyed (26) 130 Value Destroyed (794) 794 Prototype IDs (0) 0 Alien Tech Used (0) 0 Bonus (-131) -131 TOTAL SCORE: 1393 Bonus ------- Friendly Fire -131 Cogmind --------- Core Integrity 0/250 Matter 85/300 Energy 100/100 System Corruption 3% Temperature Cool (0) Movement Treading (160) Location -10/Subcaves Parts ------- > --- POWER (1) -------- (None) > --- PROPULSION (2) --- Spiked Treads Spiked Treads > --- UTILITY (2) ------ Large Storage Unit Signal Interpreter > --- WEAPON (2) ------- Mini Grenade Launcher Mini Grenade Launcher > --- INVENTORY (15) --- Subdweller Power Source Subdweller Power Source Improved Heat Sink Assault Rifle Barrage Gun Mini Grenade Launcher Mini Grenade Launcher Subdweller Shrapnel Launcher Mining Laser Peak State ------------ > --- POWER ------------ Ion Engine > --- PROPULSION ------- Spiked Treads Spiked Treads > --- UTILITY ---------- Large Storage Unit Signal Interpreter > --- WEAPON ----------- Mini Grenade Launcher Mini Grenade Launcher > --- INVENTORY -------- Subdweller Power Source Improved Heat Sink Assault Rifle Mini Grenade Launcher Mini Grenade Launcher Subdweller Shrapnel Launcher Mining Laser [Rating: 12] Favorites ----------- Power Ion Engine Engine Ion Engine Propulsion Light Treads Treads Light Treads Utility Large Storage Unit Storage Large Storage Unit Processor Signal Interpreter Weapon Grenade Launcher Ballistic Gun Assault Rifle Launcher Grenade Launcher Build | -11 -10 -10 -10 ------- Run | Yrd Mat Min Sub Slots Evolved . | . . . . Power . | . . . . Propulsion . | . . . . Utility . | . . . . Weapon . | . . . . Parts Attached 18 | 6 5 1 6 Power 3 | 1 . 1 1 Engine 3 | 1 . 1 1 Core . | . . . . Reactor . | . . . . Propulsion 5 | 2 . . 3 Treads 5 | 2 . . 3 Leg . | . . . . Wheel . | . . . . Hover . | . . . . Flight . | . . . . Utility 4 | 1 3 . . Device . | . . . . Storage 3 | 1 2 . . Processor 1 | . 1 . . Hackware . | . . . . Protection . | . . . . Artifact . | . . . . Weapon 6 | 2 2 . 2 Energy Gun . | . . . . Energy Cannon . | . . . . Ballistic Gun 2 | 2 . . . Ballistic Cannon . | . . . . Launcher 4 | . 2 . 2 Special Weapon . | . . . . Impact Weapon . | . . . . Slashing Weapon . | . . . . Piercing Weapon . | . . . . Special Melee Weapon . | . . . . Unidentified Prototypes . | . . . . Parts Lost 8 | . 1 . 7 Power 3 | . 1 . 2 Propulsion 3 | . . . 3 Utility . | . . . . Weapon 2 | . . . 2 Highest Loss Streak 4 | . 1 . 4 To Critical Strikes 1 | . . . 1 Average Slot Usage (%) 91 | . 86 100 92 Engine 13 | . 13 14 11 Treads 26 | . 28 28 23 Storage 14 | . 14 14 14 Processor 7 | . 1 14 14 Ballistic Gun 5 | . 11 . . Launcher 22 | . 16 28 28 Naked Turns . | . . . . Heaviest Build 31 | 13 31 31 31 Greatest Support 40 | 40 40 40 40 Greatest Overweight (x) 1 | . . . 1 Average Overweight (x) . | . . . . Largest Inventory Capacity 15 | 8 15 15 15 Average Capacity 12 | 6 10 15 15 Most Carried 12 | 1 7 8 12 Average Carried 5 | . 2 6 8 Final Capacity 15 | 8 15 15 15 Final Carried 9 | 1 7 8 9 Class Distribution -------------------- 100% | Mutant Dominant Class ---------------- Mutant | -10/Materials Mutant | -10/Mines Mutant | -10/Subcaves Resources | -11 -10 -10 -10 ----------- Run | Yrd Mat Min Sub Matter Collected 747 | 239 118 86 304 Remotely . | . . . . Salvage Created 550 | . 188 106 256 Parts 34 | . 17 3 14 Haulers Intercepted . | . . . . Recyclers Shooed . | . . . . Parts Field Recycled . | . . . . Retrieved Matter . | . . . . Parts Self-Destructed 6 | . . . 6 Prevented . | . . . . Kills | -11 -10 -10 -10 ------- Run | Yrd Mat Min Sub Combat Hostiles Destroyed 21 | . 8 2 11 Guns 1 | . 1 . . AOE 20 | . 7 2 11 Classes Destroyed 7 | . 4 1 2 Worker 1 | . . 1 . Builder 1 | . 1 . . Watcher 2 | . 2 . . Swarmer 3 | . 3 . . Grunt 8 | . 5 2 1 Sentry 1 | . . . 1 Subdweller 9 | . . . 9 Thug 1 | . . 1 . Best Kill Streak 7 | . 7 3 5 Combat Bots Only 7 | . 7 2 5 Max Kills in Single Turn 3 | . 2 3 2 Gunslinging . | . . . . Exploded 2 | . 2 2 2 Melee . | . . . . Uniques/NPCs Destroyed . | . . . . Combat | -11 -10 -10 -10 -------- Run | Yrd Mat Min Sub Hostile Shots Fired 68 | . 42 . 26 Missed 23 | . 15 . 8 Damage Taken 1215 | . 422 34 759 Core 250 | . 46 . 204 Absorbed by Shields . | . . . . Core Remaining (%) 100 | 100 . . . Volleys Fired 45 | . 24 2 19 Largest 2 | . 2 2 2 Hottest 60 | . 60 60 60 Shots Fired 84 | . 48 4 32 Gun 37 | . 37 . . Cannon . | . . . . Launcher 47 | . 11 4 32 Special . | . . . . Kinetic 37 | . 37 . . Thermal . | . . . . Explosive 47 | . 11 4 32 Electromagnetic . | . . . . Robot Hit Streak 13 | . 9 . 13 Robot Miss Streak 3 | . 3 2 1 Penetration Max . | . . . . Secondary Targets . | . . . . Shots Hit Robots 50 | . 32 . 18 Core Hits 45 | . 20 7 18 Critical Kills . | . . . . Critical Parts Destroyed . | . . . . Critical Strikes . | . . . . Melee Attacks . | . . . . Impact . | . . . . Slashing . | . . . . Piercing . | . . . . Sneak Attacks . | . . . . Combat Hostiles . | . . . . Follow-up Attacks . | . . . . Damage Inflicted 2450 | . 873 204 1373 Guns 254 | . 254 . . Cannons . | . . . . Explosions 2196 | . 619 204 1373 Melee . | . . . . Ramming . | . . . . Kinetic 254 | . 254 . . Thermal . | . . . . Explosive 2196 | . 619 204 1373 Electromagnetic . | . . . . Impact . | . . . . Slashing . | . . . . Piercing . | . . . . Highest Corruption 3 | . 3 3 3 Average Corruption 2 | . 2 3 3 Corruption Purged . | . . . . Corruption Blocked . | . . . . Effects 17 | . 7 3 7 Matter Fused 8 | . 5 1 2 Heat Flow Errors 3 | . 1 1 1 Energy Discharges 2 | . . 1 1 Data Loss (minor) 3 | . 1 . 2 Alerts 1 | . . . 1 Overload Shots . | . . . . Overflow Damage 15 | . . . 15 Projectiles . | . . . . Explosions 15 | . . . 15 Melee . | . . . . Knockbacks . | . . . . Impact . | . . . . Kinetic . | . . . . Secondary . | . . . . Self-Inflicted Damage 490 | . 96 34 360 Shots 19 | . 4 1 14 Rammed . | . . . . Targets Rammed . | . . . . Kicked . | . . . . Crushed . | . . . . Highest Temperature 247 | . 247 165 98 Average Temperature 60 | . 53 90 66 Received Heat Transfer 246 | . 201 . 45 Siege Activations . | . . . . Robots Corrupted . | . . . . Combat Hostiles . | . . . . Parts Fried . | . . . . Impact Corruptions . | . . . . Robots Melted . | . . . . Combat Hostiles . | . . . . Parts Melted . | . . . . Heat Transferred . | . . . . Parts Sabotaged . | . . . . Parts Stolen . | . . . . Parts Stripped . | . . . . Power Chain Reactions . | . . . . Alert | -11 -10 -10 -10 ------- Run | Yrd Mat Min Sub Peak Influence 259 | . 259 115 . Initial 39 | . . 39 . Average 62 | . 72 50 . Maximum Alert Level 1 | . 1 . . Low Security (%) 93 | 100 91 100 . Level 1 6 | . 8 . . Level 2 . | . . . . Level 3 . | . . . . Level 4 . | . . . . Level 5 . | . . . . High Security . | . . . . Max Security . | . . . . Squads Dispatched 1 | . 1 . . Investigation . | . . . . Extermination . | . . . . Reinforcement 1 | . 1 . . Assault . | . . . . Garrison . | . . . . Intercept . | . . . . Searches Triggered . | . . . . Construction Impeded . | . . . . Haulers Reinforced . | . . . . Active Scanning Responses . | . . . . Cargo Convoy Interrupts . | . . . . Stealth | -11 -10 -10 -10 --------- Run | Yrd Mat Min Sub Distress Signals . | . . . . Communications Jammed . | . . . . Distress Signals . | . . . . Times Spotted 26 | . 12 2 12 Peak Tracking Total 3 | . 3 2 2 Tactical Retreats . | . . . . Traps | -11 -10 -10 -10 ------- Run | Yrd Mat Min Sub Traps Triggered 2 | . 2 . . Indirectly . | . . . . Trap Hack Attempts . | . . . . Triggered . | . . . . Disarmed . | . . . . Reprogrammed . | . . . . Reused . | . . . . Traps Extracted . | . . . . Installed . | . . . . Triggered . | . . . . Machines | -11 -10 -10 -10 ---------- Run | Yrd Mat Min Sub Machines Disabled 1 | . 1 . . Max in Single Turn 1 | . 1 . . Machines Repaired . | . . . . Machines Dismantled . | . . . . Machines Sabotaged . | . . . . Overloaded Fab Kills . | . . . . Hacking | -11 -10 -10 -10 --------- Run | Yrd Mat Min Sub Machines Accessed 2 | . 2 . . Terminals 2 | . 2 . . Fabricators . | . . . . Repair Stations . | . . . . Recycling Units . | . . . . Scanalyzers . | . . . . Garrison Access . | . . . . Total Hacks 4 | . 4 . . Successful 3 | . 3 . . Failed 1 | . 1 . . Catastrophic . | . . . . Database Lockouts . | . . . . Manual . | . . . . Terminals 4 | . 4 . . Fabricators . | . . . . Repair Stations . | . . . . Recycling Units . | . . . . Scanalyzers . | . . . . Garrison Access . | . . . . Terminal Hacks 3 | . 3 . . Record 2 | . 2 . . Dispatch Records 1 | . 1 . . Fabricator Hacks . | . . . . Repair Station Hacks . | . . . . Recycling Unit Hacks . | . . . . Scanalyzer . | . . . . Garrison Access Hacks . | . . . . Unauthorized Hacks . | . . . . Terminals . | . . . . Fabricators . | . . . . Repair Stations . | . . . . Recycling Units . | . . . . Scanalyzers . | . . . . Garrison Access . | . . . . Data Cores Recovered . | . . . . Used . | . . . . Hacking Detections 1 | . 1 . . Full Trace Events . | . . . . Feedback Events . | . . . . Feedback Blocked . | . . . . Robot Schematics Acquired . | . . . . Robots Built . | . . . . Authchips . | . . . . Time . | . . . . Total Robot Build Rating . | . . . . Part Schematics Acquired . | . . . . Parts Built . | . . . . Authchips . | . . . . Time . | . . . . Total Part Build Rating . | . . . . Parts Repaired . | . . . . Time . | . . . . Parts Recycled . | . . . . Recycled Matter . | . . . . Retrieved Matter . | . . . . Retrieved Components . | . . . . Parts Scanalyzed . | . . . . Part Schematics Acquired . | . . . . Parts Damaged . | . . . . Bothacking | -11 -10 -10 -10 ------------ Run | Yrd Mat Min Sub Used RIF Installer . | . . . . Robots Hacked . | . . . . Non-combat . | . . . . Combat . | . . . . Robot Hacks Applied . | . . . . Relay Couplers Released . | . . . . Fabnet Peak Effective % . | . . . . Robots Rewired . | . . . . Allies Hacked . | . . . . Hacks Repelled . | . . . . Allies | -11 -10 -10 -10 -------- Run | Yrd Mat Min Sub Total Allies 1 | . . 1 . Largest Group 1 | . . 1 . Highest-Rated Group 31 | . . 31 . Highest-Rated Ally 31 | . . 31 . Total Orders . | . . . . Ally Attacks 2 | . . 2 . Total Damage 21 | . . 21 . Kills . | . . . . Allies Corrupted . | . . . . Allies Melted . | . . . . Intel | -11 -10 -10 -10 ------- Run | Yrd Mat Min Sub Robot Analysis Total . | . . . . Derelict Logs Recovered 2 | . . 1 1 Drone Launches . | . . . . Drone Recoveries . | . . . . Exploration | -11 -10 -10 -10 ------------- Run | Yrd Mat Min Sub Turns Passed 1601 | 58 793 314 436 Spaces Moved 871 | 34 444 186 207 Core 5 | 5 . . . Treads 866 | 29 444 186 207 Legs . | . . . . Wheels . | . . . . Hover . | . . . . Flight . | . . . . Fastest Speed 50 | 50 160 160 160 Average Speed 163 | 143 160 160 176 Slowest Speed 260 | 160 160 160 260 Overloaded Moves . | . . . . Propulsion Burnouts . | . . . . Robots Hopped . | . . . . Cave-ins Triggered . | . . . . Exploration Rate (%) 33 | 4 68 42 20 Regions Visited 3 Branch Regions 2 Pre-discovered Areas 1 | . . . 1 Known Exits Taken 2 | . 1 1 . Unknown Exits Taken 1 | 1 . . . Scrap Searched 5 | . . . 5 Spaces Dug 25 | . . . 25 Terrain Destroyed 227 | . 36 35 156 Melee . | . . . . Projectile . | . . . . AOE 227 | . 36 35 156 Terrain Rammed . | . . . . Walls Destroyed . | . . . . Machines Disabled . | . . . . Actions | -11 -10 -10 -10 --------- Run | Yrd Mat Min Sub Total 967 | 40 482 199 246 Wait 17 | . . 9 8 Move 868 | 33 443 185 207 Hop . | . . . . Pick Up 15 | 1 6 2 6 Fast Attach 11 | 6 4 . 1 Attach 7 | . 1 1 5 Detach 1 | . 1 . . Swap . | . . . . Drop 3 | . 3 . . Fire 45 | . 24 2 19 Melee . | . . . . Ram . | . . . . Kick . | . . . . Crush . | . . . . Escape Stasis . | . . . . Rewire . | . . . . Trap . | . . . . Miscellaneous . | . . . . Route ------- -11/Scrapyard -10/Materials (discovered 4 exits: [*Mat x3] / *Min) -10/Mines -10/Subcaves History --------- Turn | Location | Event 27 | -11/Scrapyard | Discovered new exit (range 16) 59 | -11/Scrapyard | Entered Materials 292 | -10/Materials | Discovered new exit (range 8) 316 | -10/Materials | Build established: Mutant 418 | -10/Materials | Destroyed 7 combat bots 469 | -10/Materials | Discovered new exit (range 5) 639 | -10/Materials | Discovered new exit (range 4) 758 | -10/Materials | Discovered new exit (range 16) 851 | -10/Materials | Identified exit to Mines 852 | -10/Materials | Entered Mines 863 | -10/Mines | Learned Materials stockpile data 993 | -10/Mines | Received a Mining Laser from a helpful Derelict 1144 | -10/Mines | Discovered new exit (range 14) 1165 | -10/Mines | Identified exit to Subcaves 1166 | -10/Mines | Entered Subcaves 1250 | -10/Subcaves | Disturbed a concealed Subdweller 1315 | -10/Subcaves | Lost 4 parts (1p1n2w) 1396 | -10/Subcaves | Core integrity fell below 50% 1413 | -10/Subcaves | A Subdweller sparked back to life 1413 | -10/Subcaves | A Subdweller sparked back to life 1413 | -10/Subcaves | A Subdweller sparked back to life 1429 | -10/Subcaves | Core integrity fell below 20% 1602 | -10/Subcaves | Destroyed by TI-RKY(R) with Subdweller Machine Gun Last Messages --------------- 01436_ Subatomizers dissect the Sub. Beam Cannon. 01437_ The unstable cave ceiling collapses. 01440_ Acquired Spk. Treads. 01447_ Acquired 36 matter. 01450_ Acquired Sub. Power Source. 01458_ The unstable cave ceiling collapses. 01473_ Subatomizers dissect the Sub. Beam Cannon. 01473_ Acquired 6 matter. 01474_ The unstable cave ceiling collapses. 01480_ Acquired 5 matter. 01483_ Acquired 12 matter. 01556_ Acquired Barrage Gun. 01577_ Ion Engine destroyed. 01590_ K1-ZUX(R) destroyed. 01601_ System corrupted: Component data lost. 01601_ Destroyed Scrap Shield. 01601_ GQ-9H4(R) destroyed. 01602_ TI-RKY(R): "ARGHSUB!" Map ----- +----------------------------------------------------+ | ?????????????????????????????????????????????????? | | ?????????????????????????????????????????????????? | | ?????????????????????????????????????????????????? | | ?????????????????????????????????????????????????? | | ?????????????????????????????????????????????????? | | ?????????????????????????????????????????????????? | | ?????????????????????????????????????????????????? | | ???????????????????????????????###???????????????? | | ????????????????????????????#### ##??????????????? | | ????????????????????????????# " ##?????????????? | | ????????????????????????????# """""#?????????????? | | ?????????????????????????????# #?????????????? | | ????????????????????????????## # #????????????? | | ????????????????????????????# # ##??????????? | | ????????????????????????????## # #??????????? | | ?????????????????????????????# ##? #???###????? | | ?????????????????????????????# #?? #?### ##???? | | ????????????????????????????## #??# ### #???? | | ????????????????????????????# ##?# ## ##### | | ????????????????????????????## ### | | ????????????????????????????## | | ??????????????????????????### ## | | ?????????????????????????## ## # # ## ### | | ????????????????????????## ###########?#### | | ????????????????????????# #??????????????### | | ????????????????????????#@ ##????????????????# | | ???????????????????????# ### #?????????????????# | | ??????????????????????# #?## #?????????????????# | | ?????????????????????# ??###?????????????????? | | ???????????????????? ??????????????????????? | | ???????????????????# ??????????????????????? | | ?????????????????? ??????????????????????? | | ????????????????? ?????????????????????? | | ???????????????? ?????????????????????? | | ??????????????# % ????????????????????## | | ??????????????## R???????????????????## | | ???????????????# ??????????????????# | | ????????????????## ??????????????????### | | ??????????????????# # ????????????????????# | | ????????????????????? #?# ????????????????????? | | ????????????????????????? #?????????????????????? | | ?????????????????????????????????????????????????# | | ?????????????????????????????????????????????????# | | ?????????????????????????????????????????????????# | | ????????????????????????????????????????????????# | | ???????????????????????????????????????????????# | | ???????????????????????????????????????????????# | | ???????????????????????????????????????????????### | | ?????????????????????????????????????????????????? | | ?????????????????????????????????????????????????? | +----------------------------------------------------+ Best States ------------- Heat Dissipation 25 Energy Generation 10 Energy Capacity 250 Matter Stores 300 Matter Capacity 300 Sight Range 16 Terrain Scan Density 10 Evasion (%) 40 Recoil Reduction 2 Item Schematics ----------------- None Robot Schematics ------------------ None Fabricated ------------ Nothing Alien Tech Used ----------------- None Achievements -------------- None Challenges ------------ None Game ------ Seed CobblerHellfireFragment Manual? 0 Play Time 00:14:55 Cumulative 3.4 hours Start 2024.04.06 @ 17:28:52 End 2024.04.06 @ 17:42:22 Sessions 1 Manual Loads 0 Difficulty Rogue Special Mode None Game No. 8 Rogue 6 Adventurer 2 Explorer 0 Win Type - Total 0 Types 0/0/0/0/0/0/0/0/0 Lore% 2 Gallery% 4 Achievement% 7 Wizard Run 0 Options --------- Layout 2 ASCII 0 Keyboard 0 Movement Mouse Keybinds 0 Fullscreen 2 Font 24/Terminus Map View 50x44 Zoom Use 0% Tactical HUD 1 Map Filters NONE Filters NONE Steam 0 RUN: 5f48f80a-b1b7-40c7-8c33-68a0367cbdb5